[Event "*** Titled Tuesday Blitz"]
[Site "Chess.com"]
[Date "2018.12.04"]
[Round "5"]
[White "Kawhi_Leonard2"]
[Black "pedromartinez91"]
[Result "0-1"]
[WhiteElo "2287"]
[BlackElo "2406"]
[TimeControl "180+2"]
[EndTime "14:07:07 PST"]
[Termination "pedromartinez91 won by resignation"]

1. e4 {[%clk 0:03:01.9]} 1... c5 {[%clk 0:03:00.3]} 2. Nf3 {[%clk 0:03:03]} 2...
Nc6 {[%clk 0:03:00.8]} 3. d4 {[%clk 0:03:04.5]} 3... cxd4 {[%clk 0:03:01.8]} 4.
Nxd4 {[%clk 0:03:06.3]} 4... d5 {[%clk 0:03:02.5]} 5. Bb5 {[%clk 0:03:02.2]}
5... dxe4 {[%clk 0:03:02.9]} 6. Nxc6 {[%clk 0:02:34.4]} 6... Qxd1+ {[%clk
0:03:04.8]} 7. Kxd1 {[%clk 0:02:35.2]} 7... a6 {[%clk 0:03:02.8]} 8. Ba4 {[%clk
0:02:27.5]} 8... Bd7 {[%clk 0:03:02.3]} 9. Nc3 {[%clk 0:02:28.4]} 9... Bxc6
{[%clk 0:03:02.6]} 10. Bxc6+ {[%clk 0:02:28.7]} 10... bxc6 {[%clk 0:03:04.5]}
11. Nxe4 {[%clk 0:02:29.4]} 11... f5 {[%clk 0:03:02.1]} 12. Ng5 {[%clk 0:02:25]}
12... Nf6 {[%clk 0:02:58.6]} 13. Ne6 {[%clk 0:02:20]} 13... Kf7 {[%clk
0:02:58.3]} 14. Nxf8 {[%clk 0:02:18.9]} 14... Rhxf8 {[%clk 0:02:58.5]} 15. Ke2
{[%clk 0:02:19.8]} 15... e5 {[%clk 0:02:56.8]} 16. b3 {[%clk 0:02:19.5]} 16...
Rfd8 {[%clk 0:02:55.4]} 17. Bb2 {[%clk 0:02:20]} 17... Ke6 {[%clk 0:02:55.8]}
18. Rad1 {[%clk 0:02:19.2]} 18... g5 {[%clk 0:02:54.2]} 19. h4 {[%clk
0:02:13.3]} 19... g4 {[%clk 0:02:53.7]} 20. g3 {[%clk 0:02:14.4]} 20... h5
{[%clk 0:02:53.8]} 21. c4 {[%clk 0:02:11.2]} 21... a5 {[%clk 0:02:47.7]} 22. Bc3
{[%clk 0:01:59.4]} 22... Ne4 {[%clk 0:02:46.4]} 23. Rxd8 {[%clk 0:01:45.3]}
23... Nxc3+ {[%clk 0:02:35]} 24. Kd3 {[%clk 0:01:46]} 24... Rxd8+ {[%clk
0:02:35.6]} 25. Kxc3 {[%clk 0:01:47.3]} 25... f4 {[%clk 0:02:37.3]} 26. a3
{[%clk 0:01:44.5]} 26... Kf5 {[%clk 0:02:37.1]} 27. b4 {[%clk 0:01:44.1]} 27...
axb4+ {[%clk 0:02:37.6]} 28. axb4 {[%clk 0:01:45.4]} 28... e4 {[%clk 0:02:31.4]}
29. gxf4 {[%clk 0:01:43.1]} 29... Kxf4 {[%clk 0:02:32.2]} 30. Re1 {[%clk
0:01:41.2]} 30... Kf3 {[%clk 0:02:32.3]} 31. b5 {[%clk 0:01:35]} 31... cxb5
{[%clk 0:02:32.6]} 32. cxb5 {[%clk 0:01:36.1]} 32... Kxf2 {[%clk 0:02:09.1]} 33.
Rxe4 {[%clk 0:01:36.1]} 33... g3 {[%clk 0:02:10.6]} 34. Rf4+ {[%clk 0:01:30.1]}
34... Ke3 {[%clk 0:02:11.3]} 35. Rf5 {[%clk 0:01:23.9]} 35... g2 {[%clk
0:02:09.7]} 36. Rg5 {[%clk 0:01:24.7]} 36... Rc8+ {[%clk 0:02:06.2]} 37. Kb4
{[%clk 0:01:25.2]} 37... Kf2 {[%clk 0:02:07.4]} 38. Rf5+ {[%clk 0:01:25.9]}
38... Ke1 {[%clk 0:02:02.9]} 39. Rg5 {[%clk 0:01:26.5]} 39... Kf1 {[%clk
0:02:04.3]} 40. Rf5+ {[%clk 0:01:27.3]} 40... Ke2 {[%clk 0:02:04.5]} 41. Rg5
{[%clk 0:01:27.9]} 41... Kf3 {[%clk 0:02:04.3]} 42. Rf5+ {[%clk 0:01:28.9]}
42... Ke4 {[%clk 0:02:00.3]} 43. Rg5 {[%clk 0:01:29.1]} 43... Rc2 {[%clk
0:02:01.1]} 44. Kb3 {[%clk 0:01:20.8]} 44... Rc5 {[%clk 0:01:54.6]} 45. Rxg2
{[%clk 0:01:14]} 45... Rxb5+ {[%clk 0:01:55.8]} 46. Kc4 {[%clk 0:01:14.8]} 46...
Rf5 {[%clk 0:01:53.3]} 47. Re2+ {[%clk 0:01:11.2]} 47... Kf3 {[%clk 0:01:52.9]}
48. Re8 {[%clk 0:01:02.3]} 48... Kg3 {[%clk 0:01:40.8]} 49. Kd3 {[%clk
0:01:00.4]} 49... Kxh4 {[%clk 0:01:40]} 50. Ke2 {[%clk 0:01:01.6]} 50... Kg3
{[%clk 0:01:39.2]} 51. Rg8+ {[%clk 0:01:01.6]} 51... Kh3 {[%clk 0:01:40.6]} 52.
Rg7 {[%clk 0:00:56.1]} 52... h4 {[%clk 0:01:41.4]} 53. Rg8 {[%clk 0:00:57.1]}
53... Kh2 {[%clk 0:01:42.6]} 54. Rg7 {[%clk 0:00:55.7]} 54... h3 {[%clk
0:01:41.2]} 55. Rg8 {[%clk 0:00:57.1]} 55... Kh1 {[%clk 0:01:42.3]} 56. Rg7
{[%clk 0:00:57.6]} 56... Ra5 {[%clk 0:01:43.2]} 57. Kf2 {[%clk 0:00:57.6]} 57...
Ra2+ {[%clk 0:01:43.3]} 58. Kf1 {[%clk 0:00:58.7]} 58... Ra6 {[%clk 0:01:41.8]}
59. Kf2 {[%clk 0:00:58.1]} 59... Rf6+ {[%clk 0:01:38.4]} 60. Ke2 {[%clk
0:00:56.8]} 60... Rf4 {[%clk 0:01:36.1]} 61. Ke1 {[%clk 0:00:57.7]} 61... Kh2
{[%clk 0:01:34.6]} 62. Ke2 {[%clk 0:00:58.7]} 62... Rf6 {[%clk 0:01:35.9]} 63.
Ke1 {[%clk 0:00:59.5]} 63... Rf3 {[%clk 0:01:36.9]} 64. Ke2 {[%clk 0:01:00.4]}
64... Rg3 {[%clk 0:01:38.2]} 65. Ra7 {[%clk 0:00:34.3]} 65... Kg2 {[%clk
0:01:37.8]} 66. Ra2 {[%clk 0:00:20.8]} 66... h2 {[%clk 0:01:37.9]} 67. Ke1+
{[%clk 0:00:22.1]} 67... Kh3 {[%clk 0:01:38.3]} 0-1

[Event "*** Titled Tuesday Blitz"]
[Site "Chess.com"]
[Date "2018.12.04"]
[Round "5"]
[White "eCztery"]
[Black "MerdeNoms943"]
[Result "0-1"]
[WhiteElo "2279"]
[BlackElo "2324"]
[TimeControl "180+2"]
[EndTime "14:07:20 PST"]
[Termination "MerdeNoms943 won by resignation"]

1. e4 {[%clk 0:02:57.1]} 1... c5 {[%clk 0:03:00.5]} 2. Nf3 {[%clk 0:02:57.9]}
2... d6 {[%clk 0:03:01.2]} 3. d4 {[%clk 0:02:58.7]} 3... cxd4 {[%clk 0:03:03.1]}
4. Qxd4 {[%clk 0:03:00.5]} 4... Nc6 {[%clk 0:03:03.2]} 5. Bb5 {[%clk 0:03:01.5]}
5... Bd7 {[%clk 0:02:55.1]} 6. Bxc6 {[%clk 0:03:00.6]} 6... Bxc6 {[%clk
0:02:57]} 7. Nc3 {[%clk 0:02:59.2]} 7... Nf6 {[%clk 0:02:49.9]} 8. Bg5 {[%clk
0:03:00.3]} 8... e6 {[%clk 0:02:47.3]} 9. O-O-O {[%clk 0:03:01.6]} 9... Be7
{[%clk 0:02:44.6]} 10. Kb1 {[%clk 0:03:02.9]} 10... O-O {[%clk 0:02:41.7]} 11.
Rhe1 {[%clk 0:03:04.3]} 11... Qa5 {[%clk 0:02:35.2]} 12. Qd2 {[%clk 0:03:05.2]}
12... Qc7 {[%clk 0:02:24.3]} 13. Nd4 {[%clk 0:03:05.2]} 13... Rfd8 {[%clk
0:02:17.1]} 14. f4 {[%clk 0:03:05.5]} 14... a6 {[%clk 0:02:16.4]} 15. h4 {[%clk
0:03:04.1]} 15... d5 {[%clk 0:02:06.1]} 16. e5 {[%clk 0:03:02.4]} 16... Ne4
{[%clk 0:02:06.8]} 17. Nxe4 {[%clk 0:02:55.8]} 17... dxe4 {[%clk 0:02:08.7]} 18.
Bxe7 {[%clk 0:02:46.7]} 18... Qxe7 {[%clk 0:02:08.3]} 19. g4 {[%clk 0:02:30.1]}
19... Qxh4 {[%clk 0:02:05]} 20. Rh1 {[%clk 0:02:25.2]} 20... Qxh1 {[%clk
0:01:48.7]} 21. Rxh1 {[%clk 0:02:12.5]} 21... e3 {[%clk 0:01:49.8]} 22. Qxe3
{[%clk 0:02:09.1]} 22... Bxh1 {[%clk 0:01:49.9]} 23. c3 {[%clk 0:02:06.6]} 23...
Rac8 {[%clk 0:01:43.8]} 24. f5 {[%clk 0:02:07.7]} 24... Bd5 {[%clk 0:01:42.2]}
25. f6 {[%clk 0:02:08.9]} 25... Kh8 {[%clk 0:01:28.1]} 26. b3 {[%clk 0:01:44]}
26... gxf6 {[%clk 0:01:22.6]} 27. exf6 {[%clk 0:01:45.7]} 27... b5 {[%clk
0:01:19.3]} 28. g5 {[%clk 0:01:13.1]} 28... Rg8 {[%clk 0:01:20.2]} 29. Qe5
{[%clk 0:01:10.8]} 29... Rg6 {[%clk 0:01:16.2]} 30. Ne2 {[%clk 0:00:59.4]} 30...
Rcg8 {[%clk 0:01:10.6]} 31. Qc7 {[%clk 0:00:56.4]} 31... e5 {[%clk 0:01:11.8]}
32. Qxe5 {[%clk 0:00:54.6]} 32... Rxg5 {[%clk 0:01:13.2]} 33. Qd4 {[%clk
0:00:51.9]} 33... Bf3 {[%clk 0:01:00.8]} 34. Nf4 {[%clk 0:00:51.3]} 34... Rg4
{[%clk 0:00:55.4]} 35. Qe3 {[%clk 0:00:50.3]} 35... Bc6 {[%clk 0:00:51.5]} 36.
Nh5 {[%clk 0:00:48.4]} 36... Re8 {[%clk 0:00:46.9]} 37. Qc5 {[%clk 0:00:44.3]}
37... Rg2 {[%clk 0:00:42.6]} 38. Qe7 {[%clk 0:00:14.3]} 38... Rxe7 {[%clk
0:00:37.5]} 39. fxe7 {[%clk 0:00:16.2]} 39... Re2 {[%clk 0:00:38.5]} 40. c4
{[%clk 0:00:17.3]} 40... Rxe7 {[%clk 0:00:38.9]} 41. Nf6 {[%clk 0:00:18.8]}
41... Re6 {[%clk 0:00:36.9]} 42. Ng4 {[%clk 0:00:19.7]} 42... Bf3 {[%clk
0:00:32.2]} 43. Nh2 {[%clk 0:00:19.4]} 43... Re1+ {[%clk 0:00:32.8]} 44. Kc2
{[%clk 0:00:20.7]} 44... Re2+ {[%clk 0:00:34.7]} 45. Kd3 {[%clk 0:00:22.6]}
45... Rxh2 {[%clk 0:00:36.4]} 46. c5 {[%clk 0:00:24.5]} 46... Rxa2 {[%clk
0:00:36.3]} 47. Ke3 {[%clk 0:00:26.4]} 47... Bc6 {[%clk 0:00:37.5]} 48. b4
{[%clk 0:00:28.1]} 48... Rb2 {[%clk 0:00:38.8]} 49. Kd4 {[%clk 0:00:30]} 49...
Rxb4+ {[%clk 0:00:40]} 50. Ke5 {[%clk 0:00:31.9]} 50... Re4+ {[%clk 0:00:38.7]}
51. Kd6 {[%clk 0:00:33.8]} 51... Re6+ {[%clk 0:00:40]} 52. Kc7 {[%clk
0:00:34.5]} 52... b4 {[%clk 0:00:41.6]} 53. Kb6 {[%clk 0:00:36.4]} 53... b3
{[%clk 0:00:41.7]} 54. Kc7 {[%clk 0:00:34.2]} 54... b2 {[%clk 0:00:42.4]} 55.
Kc8 {[%clk 0:00:35.6]} 55... b1=Q {[%clk 0:00:42]} 56. Kc7 {[%clk 0:00:37.5]}
56... Qb7+ {[%clk 0:00:42.9]} 0-1

[Event "*** Titled Tuesday Blitz"]
[Site "Chess.com"]
[Date "2018.12.04"]
[Round "5"]
[White "Squirlolz"]
[Black "Rashad_Zeynalli"]
[Result "1/2-1/2"]
[WhiteElo "2462"]
[BlackElo "2348"]
[TimeControl "180+2"]
[EndTime "14:07:26 PST"]
[Termination "Game drawn by agreement"]

1. g3 {[%clk 0:03:01.9]} 1... Nf6 {[%clk 0:02:59.4]} 2. Bg2 {[%clk 0:03:02.5]}
2... g6 {[%clk 0:03:00.8]} 3. Nf3 {[%clk 0:03:03.3]} 3... Bg7 {[%clk 0:03:02]}
4. c4 {[%clk 0:03:03.5]} 4... O-O {[%clk 0:03:03.2]} 5. Nc3 {[%clk 0:03:04.5]}
5... d6 {[%clk 0:03:04.6]} 6. d4 {[%clk 0:03:05.7]} 6... Nc6 {[%clk 0:03:06.1]}
7. O-O {[%clk 0:03:06.9]} 7... a6 {[%clk 0:03:06.5]} 8. Bd2 {[%clk 0:03:06.8]}
8... e5 {[%clk 0:03:05.5]} 9. dxe5 {[%clk 0:03:00.2]} 9... dxe5 {[%clk
0:03:04.4]} 10. Bg5 {[%clk 0:03:01.3]} 10... Be6 {[%clk 0:02:49.9]} 11. Qxd8
{[%clk 0:02:53.2]} 11... Raxd8 {[%clk 0:02:44.8]} 12. Nd5 {[%clk 0:02:53.3]}
12... Bxd5 {[%clk 0:02:39.5]} 13. cxd5 {[%clk 0:02:54.4]} 13... Rxd5 {[%clk
0:02:38.9]} 14. Nd2 {[%clk 0:02:54.1]} 14... e4 {[%clk 0:01:31.5]} 15. Bxf6
{[%clk 0:02:50.4]} 15... Rxd2 {[%clk 0:01:26.4]} 16. Bxg7 {[%clk 0:02:39.7]}
16... Kxg7 {[%clk 0:01:28.3]} 17. Bxe4 {[%clk 0:02:40.9]} 17... Re8 {[%clk
0:01:13.9]} 18. Bxc6 {[%clk 0:02:30.6]} 18... bxc6 {[%clk 0:01:15.8]} 19. e3
{[%clk 0:02:32.3]} 19... Rxb2 {[%clk 0:01:15.3]} 20. Rfb1 {[%clk 0:02:31.5]}
20... Reb8 {[%clk 0:01:11.2]} 21. Rxb2 {[%clk 0:02:31.4]} 21... Rxb2 {[%clk
0:01:13.1]} 22. Rc1 {[%clk 0:02:29]} 22... Rb6 {[%clk 0:01:10.6]} 23. Kg2 {[%clk
0:02:26.9]} 23... Kf6 {[%clk 0:01:11.4]} 24. Kf3 {[%clk 0:02:25.9]} 24... Ke6
{[%clk 0:01:11.5]} 25. Ke4 {[%clk 0:02:22.9]} 25... Rb4+ {[%clk 0:01:09.3]} 26.
Kd3 {[%clk 0:02:22.2]} 26... Kd5 {[%clk 0:01:07.6]} 27. Rd1 {[%clk 0:02:10.8]}
27... Rc4 {[%clk 0:00:46.2]} 28. f3 {[%clk 0:02:03.1]} 28... f5 {[%clk
0:00:45.8]} 29. h3 {[%clk 0:02:04.3]} 29... a5 {[%clk 0:00:40]} 30. g4 {[%clk
0:02:04.6]} 30... a4 {[%clk 0:00:40]} 31. gxf5 {[%clk 0:01:58.3]} 31... gxf5
{[%clk 0:00:41.9]} 32. Rg1 {[%clk 0:02:00.2]} 32... Rh4 {[%clk 0:00:31.8]} 33.
Rg5 {[%clk 0:01:56.1]} 33... Ke6 {[%clk 0:00:31]} 34. Rg7 {[%clk 0:01:52.7]}
34... Rxh3 {[%clk 0:00:23.1]} 35. f4 {[%clk 0:01:43.3]} 35... Rh2 {[%clk
0:00:20]} 36. Rxc7 {[%clk 0:01:43.3]} 36... Kd6 {[%clk 0:00:15.1]} 37. Rf7
{[%clk 0:01:42.4]} 37... Rxa2 {[%clk 0:00:15.2]} 38. Rxf5 {[%clk 0:01:43.2]}
38... c5 {[%clk 0:00:12.9]} 39. Ke4 {[%clk 0:01:42.3]} 39... a3 {[%clk
0:00:11.9]} 40. Rf6+ {[%clk 0:01:43.6]} 40... Kc7 {[%clk 0:00:13]} 41. Ra6
{[%clk 0:01:45.5]} 41... Kb7 {[%clk 0:00:13.4]} 42. Ra4 {[%clk 0:01:46.2]} 42...
Kb6 {[%clk 0:00:14.7]} 43. Kd5 {[%clk 0:01:45.1]} 43... Kb5 {[%clk 0:00:15.7]}
44. Ra8 {[%clk 0:01:46.3]} 44... Rd2+ {[%clk 0:00:16.7]} 45. Ke6 {[%clk
0:01:44.5]} 45... a2 {[%clk 0:00:18.6]} 46. e4 {[%clk 0:01:45.6]} 46... c4
{[%clk 0:00:19.4]} 47. f5 {[%clk 0:01:11.3]} 47... c3 {[%clk 0:00:20.5]} 48. f6
{[%clk 0:01:12.8]} 48... c2 {[%clk 0:00:21.4]} 49. f7 {[%clk 0:01:14.4]} 49...
Rf2 {[%clk 0:00:17.9]} 50. Rxa2 {[%clk 0:01:12.9]} 50... c1=Q {[%clk 0:00:17.4]}
51. Rxf2 {[%clk 0:01:14.8]} 51... Qc4+ {[%clk 0:00:17.5]} 52. Kd7 {[%clk
0:01:04.5]} 52... Qd4+ {[%clk 0:00:17.6]} 53. Ke7 {[%clk 0:00:59.2]} 53... Qxe4+
{[%clk 0:00:17.8]} 54. Kf8 {[%clk 0:00:57.7]} 54... Qb4+ {[%clk 0:00:16.7]} 55.
Kg7 {[%clk 0:00:59]} 55... Qd4+ {[%clk 0:00:17.2]} 56. Kxh7 {[%clk 0:00:55.6]}
56... Qxf2 {[%clk 0:00:17.3]} 57. Kg8 {[%clk 0:00:52.4]} 57... Qg3+ {[%clk
0:00:18.3]} 58. Kh7 {[%clk 0:00:51.1]} 1/2-1/2

[Event "*** Titled Tuesday Blitz"]
[Site "Chess.com"]
[Date "2018.12.04"]
[Round "5"]
[White "baki83"]
[Black "MaestroASK"]
[Result "1/2-1/2"]
[WhiteElo "2529"]
[BlackElo "2543"]
[TimeControl "180+2"]
[EndTime "14:07:32 PST"]
[Termination "Game drawn by repetition"]

1. e4 {[%clk 0:03:01.9]} 1... d6 {[%clk 0:02:51.2]} 2. d4 {[%clk 0:03:02.5]}
2... g6 {[%clk 0:02:52.5]} 3. Nc3 {[%clk 0:03:02.5]} 3... c6 {[%clk 0:02:52.9]}
4. h4 {[%clk 0:03:02.9]} 4... h5 {[%clk 0:02:52.6]} 5. Be2 {[%clk 0:03:00.4]}
5... e5 {[%clk 0:02:52.2]} 6. Nf3 {[%clk 0:03:00.9]} 6... f6 {[%clk 0:02:51.5]}
7. Bc4 {[%clk 0:02:55.5]} 7... Qe7 {[%clk 0:02:51]} 8. a4 {[%clk 0:02:47.8]}
8... Bh6 {[%clk 0:02:49.6]} 9. Bxg8 {[%clk 0:02:45.5]} 9... Bxc1 {[%clk
0:02:49.2]} 10. Qxc1 {[%clk 0:02:40]} 10... Rxg8 {[%clk 0:02:49.5]} 11. Qe3
{[%clk 0:02:37.4]} 11... Kf8 {[%clk 0:02:47.5]} 12. O-O-O {[%clk 0:02:24.1]}
12... Kg7 {[%clk 0:02:46.3]} 13. Rd2 {[%clk 0:02:18.4]} 13... Nd7 {[%clk
0:02:40.1]} 14. Rhd1 {[%clk 0:02:18.2]} 14... Nb6 {[%clk 0:02:35.9]} 15. b3
{[%clk 0:02:13.4]} 15... Bg4 {[%clk 0:02:35.1]} 16. Kb2 {[%clk 0:02:13.6]} 16...
Rgd8 {[%clk 0:02:30.9]} 17. Rg1 {[%clk 0:02:11.4]} 17... Kh7 {[%clk 0:02:20]}
18. Nh2 {[%clk 0:02:09.9]} 18... Be6 {[%clk 0:02:18.7]} 19. g4 {[%clk
0:02:09.4]} 19... hxg4 {[%clk 0:02:17.9]} 20. Nxg4 {[%clk 0:02:10.5]} 20... Bxg4
{[%clk 0:02:17.6]} 21. Rxg4 {[%clk 0:02:11.6]} 21... Rg8 {[%clk 0:02:10.7]} 22.
f4 {[%clk 0:02:05.6]} 22... exd4 {[%clk 0:02:04.4]} 23. Qxd4 {[%clk 0:02:06.4]}
23... Rad8 {[%clk 0:02:03.4]} 24. Rdg2 {[%clk 0:02:06.3]} 24... Nc8 {[%clk
0:01:48.1]} 25. Qd3 {[%clk 0:01:54.8]} 25... Qf7 {[%clk 0:01:47.3]} 26. Qd4
{[%clk 0:01:16.6]} 26... b6 {[%clk 0:01:39.1]} 27. Nd1 {[%clk 0:01:14.3]} 27...
d5 {[%clk 0:01:35.6]} 28. e5 {[%clk 0:01:08.9]} 28... fxe5 {[%clk 0:01:30.3]}
29. fxe5 {[%clk 0:01:08.4]} 29... Rdf8 {[%clk 0:01:21.1]} 30. Ne3 {[%clk
0:00:53]} 30... Qe6 {[%clk 0:01:16.3]} 31. Rg5 {[%clk 0:00:46]} 31... Ne7 {[%clk
0:01:05.2]} 32. h5 {[%clk 0:00:46.5]} 32... Nf5 {[%clk 0:00:40.3]} 33. hxg6+
{[%clk 0:00:43.8]} 33... Kg7 {[%clk 0:00:39.8]} 34. Nxf5+ {[%clk 0:00:40.4]}
34... Rxf5 {[%clk 0:00:38.9]} 35. Rxf5 {[%clk 0:00:27.3]} 35... Qxf5 {[%clk
0:00:39]} 36. Rf2 {[%clk 0:00:28.6]} 36... Qe4 {[%clk 0:00:32.8]} 37. Qxe4
{[%clk 0:00:28.2]} 37... dxe4 {[%clk 0:00:32.9]} 38. Kc3 {[%clk 0:00:29.8]}
38... Rd8 {[%clk 0:00:28.5]} 39. Rf6 {[%clk 0:00:15]} 39... e3 {[%clk
0:00:27.4]} 40. Rf3 {[%clk 0:00:15.8]} 40... Kxg6 {[%clk 0:00:26.4]} 41. Rxe3
{[%clk 0:00:16.8]} 41... Kf7 {[%clk 0:00:26.5]} 42. e6+ {[%clk 0:00:16.2]} 42...
Ke7 {[%clk 0:00:26.6]} 43. Kc4 {[%clk 0:00:15]} 43... a5 {[%clk 0:00:24.7]} 44.
c3 {[%clk 0:00:13.5]} 44... Rd1 {[%clk 0:00:22.6]} 45. b4 {[%clk 0:00:14.5]}
45... axb4 {[%clk 0:00:22.3]} 46. cxb4 {[%clk 0:00:14.9]} 46... Ra1 {[%clk
0:00:22.1]} 47. Kb3 {[%clk 0:00:14.5]} 47... Rb1+ {[%clk 0:00:22.5]} 48. Kc3
{[%clk 0:00:15]} 48... Ra1 {[%clk 0:00:22.4]} 49. Kb3 {[%clk 0:00:15.8]} 49...
Rb1+ {[%clk 0:00:22.7]} 50. Kc3 {[%clk 0:00:15.7]} 50... Ra1 {[%clk 0:00:22.2]}
51. Kb3 {[%clk 0:00:13.6]} 1/2-1/2

[Event "*** Titled Tuesday Blitz"]
[Site "Chess.com"]
[Date "2018.12.04"]
[Round "5"]
[White "ChainsOfFantasia"]
[Black "ChessQueen"]
[Result "1-0"]
[WhiteElo "2392"]
[BlackElo "2547"]
[TimeControl "180+2"]
[EndTime "14:07:42 PST"]
[Termination "ChainsOfFantasia won by resignation"]

1. d4 {[%clk 0:03:01.9]} 1... Nf6 {[%clk 0:03:00.3]} 2. c4 {[%clk 0:03:02.5]}
2... e6 {[%clk 0:03:01.6]} 3. Nf3 {[%clk 0:03:03.4]} 3... c5 {[%clk 0:03:02.4]}
4. d5 {[%clk 0:03:03.6]} 4... b5 {[%clk 0:03:03.7]} 5. dxe6 {[%clk 0:03:03]}
5... fxe6 {[%clk 0:03:04.3]} 6. cxb5 {[%clk 0:03:04.3]} 6... a6 {[%clk
0:03:05.8]} 7. bxa6 {[%clk 0:03:03.2]} 7... Be7 {[%clk 0:02:57.2]} 8. g3 {[%clk
0:03:03.9]} 8... O-O {[%clk 0:02:56.7]} 9. Nc3 {[%clk 0:03:01.7]} 9... d5 {[%clk
0:02:55.4]} 10. Bh3 {[%clk 0:03:02.4]} 10... Rxa6 {[%clk 0:02:53.2]} 11. O-O
{[%clk 0:03:01.8]} 11... d4 {[%clk 0:02:53.3]} 12. Nb1 {[%clk 0:02:59.4]} 12...
Bb7 {[%clk 0:02:50.7]} 13. Nbd2 {[%clk 0:02:38.5]} 13... Bd5 {[%clk 0:02:51.4]}
14. Qc2 {[%clk 0:02:29.7]} 14... Nc6 {[%clk 0:02:48.9]} 15. Ng5 {[%clk
0:02:16.7]} 15... Nb4 {[%clk 0:02:49.1]} 16. Qb1 {[%clk 0:02:12.7]} 16... h6
{[%clk 0:02:39.8]} 17. Nge4 {[%clk 0:02:09.5]} 17... Bxa2 {[%clk 0:02:35.8]} 18.
Rxa2 {[%clk 0:02:10.2]} 18... Nxa2 {[%clk 0:02:35.6]} 19. Nxf6+ {[%clk
0:02:00.5]} 19... Rxf6 {[%clk 0:02:25]} 20. Ne4 {[%clk 0:02:01.2]} 20... Rf7
{[%clk 0:02:20.2]} 21. Qd3 {[%clk 0:02:00]} 21... Nb4 {[%clk 0:02:20.5]} 22. Qc4
{[%clk 0:02:00.8]} 22... Qd5 {[%clk 0:02:16.3]} 23. Nd2 {[%clk 0:01:51.7]} 23...
Rf6 {[%clk 0:01:54.4]} 24. Qb5 {[%clk 0:01:40.1]} 24... Qc6 {[%clk 0:01:36]} 25.
Qb8+ {[%clk 0:01:30.2]} 25... Rf8 {[%clk 0:01:36.6]} 26. Qe5 {[%clk 0:01:30.6]}
26... Bf6 {[%clk 0:01:35.9]} 27. Qh5 {[%clk 0:01:28.4]} 27... c4 {[%clk
0:01:32.6]} 28. Bg2 {[%clk 0:01:22.1]} 28... Nd5 {[%clk 0:01:27.2]} 29. Be4
{[%clk 0:01:20.7]} 29... Qe8 {[%clk 0:01:18.1]} 30. Bg6 {[%clk 0:01:13.9]} 30...
Qb5 {[%clk 0:00:55.3]} 31. Ne4 {[%clk 0:01:04.6]} 31... Nc7 {[%clk 0:00:53]} 32.
Qh3 {[%clk 0:00:59.3]} 32... Ra7 {[%clk 0:00:26.2]} 33. Bf4 {[%clk 0:00:48.7]}
33... Qd5 {[%clk 0:00:18.8]} 34. Rd1 {[%clk 0:00:30]} 34... e5 {[%clk
0:00:16.2]} 35. Bxh6 {[%clk 0:00:26.2]} 35... gxh6 {[%clk 0:00:16.9]} 36. Qxh6
{[%clk 0:00:24.5]} 36... Ne6 {[%clk 0:00:11.5]} 37. Bf5 {[%clk 0:00:17.9]} 37...
Rg7 {[%clk 0:00:08.5]} 38. Ra1 {[%clk 0:00:17.8]} 38... d3 {[%clk 0:00:06.9]}
39. Nxf6+ {[%clk 0:00:18]} 39... Rxf6 {[%clk 0:00:07.8]} 40. Qxf6 {[%clk
0:00:19.6]} 40... Nf8 {[%clk 0:00:08.8]} 41. exd3 {[%clk 0:00:17.3]} 41... cxd3
{[%clk 0:00:09.5]} 42. Rd1 {[%clk 0:00:18.3]} 42... d2 {[%clk 0:00:09.1]} 43.
Qh6 {[%clk 0:00:19.4]} 43... Qf3 {[%clk 0:00:09.5]} 44. Bc2 {[%clk 0:00:18.4]}
44... Rd7 {[%clk 0:00:08.4]} 45. Rxd2 {[%clk 0:00:15.3]} 45... Rxd2 {[%clk
0:00:08.7]} 46. Qxd2 {[%clk 0:00:17.2]} 46... Kg7 {[%clk 0:00:10]} 47. Qg5+
{[%clk 0:00:18]} 47... Kf7 {[%clk 0:00:10.9]} 48. Qxe5 {[%clk 0:00:19]} 48...
Qc6 {[%clk 0:00:10.7]} 49. Bb3+ {[%clk 0:00:19.2]} 49... Kg6 {[%clk 0:00:11.3]}
50. Qc3 {[%clk 0:00:17]} 50... Qd6 {[%clk 0:00:11.3]} 51. Bc2+ {[%clk
0:00:18.1]} 51... Kf7 {[%clk 0:00:12.2]} 52. h4 {[%clk 0:00:19.6]} 52... Ne6
{[%clk 0:00:12.9]} 53. Bb3 {[%clk 0:00:20.3]} 53... Ke7 {[%clk 0:00:12.6]} 54.
Qe3 {[%clk 0:00:21.1]} 1-0